[Event "*** SCC Grand Prix: Titled Tuesday Blitz"]
[Site "Chess.com"]
[Date "2020.06.02"]
[Round "6"]
[White "baki83"]
[Black "Parhamov"]
[Result "0-1"]
[WhiteElo "2831"]
[BlackElo "3081"]
[TimeControl "180+1"]
[EndTime "11:06:27 PDT"]
[Termination "Parhamov won by resignation"]

1. e4 {[%clk 0:02:53.1]} 1... e5 {[%clk 0:02:55.9]} 2. Nf3 {[%clk 0:02:52.7]}
2... Nc6 {[%clk 0:02:56.4]} 3. Bc4 {[%clk 0:02:52.1]} 3... Nf6 {[%clk
0:02:55.9]} 4. d3 {[%clk 0:02:51.5]} 4... Bc5 {[%clk 0:02:55.9]} 5. c3 {[%clk
0:02:50.8]} 5... O-O {[%clk 0:02:55.5]} 6. O-O {[%clk 0:02:48.5]} 6... d6 {[%clk
0:02:55.7]} 7. Re1 {[%clk 0:02:42.3]} 7... a5 {[%clk 0:02:54.9]} 8. Bg5 {[%clk
0:02:41.1]} 8... h6 {[%clk 0:02:54.9]} 9. Bh4 {[%clk 0:02:41.2]} 9... g5 {[%clk
0:02:54.8]} 10. Bg3 {[%clk 0:02:41.4]} 10... Ba7 {[%clk 0:02:46.3]} 11. Na3
{[%clk 0:02:38.1]} 11... Kg7 {[%clk 0:02:43.1]} 12. Nb5 {[%clk 0:02:37.1]} 12...
Bb6 {[%clk 0:02:42.3]} 13. d4 {[%clk 0:02:37.2]} 13... Nh5 {[%clk 0:02:40.4]}
14. Rc1 {[%clk 0:02:27.3]} 14... Qf6 {[%clk 0:01:55.4]} 15. Bd5 {[%clk
0:02:04.5]} 15... Nxg3 {[%clk 0:01:45.6]} 16. hxg3 {[%clk 0:02:05.4]} 16... Ne7
{[%clk 0:01:45.3]} 17. Bb3 {[%clk 0:02:00.8]} 17... Ng6 {[%clk 0:01:42.2]} 18.
c4 {[%clk 0:01:47.4]} 18... exd4 {[%clk 0:01:27.9]} 19. Nfxd4 {[%clk 0:01:09.7]}
19... c6 {[%clk 0:01:27]} 20. Nf5+ {[%clk 0:00:59.6]} 20... Bxf5 {[%clk
0:01:26.5]} 0-1

[Event "*** SCC Grand Prix: Titled Tuesday Blitz"]
[Site "Chess.com"]
[Date "2020.06.02"]
[Round "6"]
[White "14Sokol88"]
[Black "bugbug01052018"]
[Result "1-0"]
[WhiteElo "2419"]
[BlackElo "2209"]
[TimeControl "180+1"]
[EndTime "11:06:36 PDT"]
[Termination "14Sokol88 won by resignation"]

1. e4 {[%clk 0:03:00]} 1... c5 {[%clk 0:02:56.7]} 2. Nf3 {[%clk 0:02:59.4]} 2...
Nc6 {[%clk 0:02:56.1]} 3. d4 {[%clk 0:02:58.3]} 3... cxd4 {[%clk 0:02:57]} 4.
Nxd4 {[%clk 0:02:58.7]} 4... Nf6 {[%clk 0:02:55.9]} 5. Nc3 {[%clk 0:02:58.3]}
5... e5 {[%clk 0:02:54.2]} 6. Ndb5 {[%clk 0:02:58]} 6... d6 {[%clk 0:02:53.6]}
7. Bg5 {[%clk 0:02:57.6]} 7... a6 {[%clk 0:02:50.9]} 8. Na3 {[%clk 0:02:57.8]}
8... b5 {[%clk 0:02:50.7]} 9. Nd5 {[%clk 0:02:56.8]} 9... Be7 {[%clk 0:02:48.3]}
10. Bxf6 {[%clk 0:02:56.5]} 10... Bxf6 {[%clk 0:02:47.5]} 11. c3 {[%clk
0:02:56.4]} 11... O-O {[%clk 0:02:46.5]} 12. Nc2 {[%clk 0:02:56.5]} 12... Bg5
{[%clk 0:02:46.5]} 13. a4 {[%clk 0:02:54.3]} 13... bxa4 {[%clk 0:02:44.7]} 14.
Rxa4 {[%clk 0:02:55.2]} 14... Be6 {[%clk 0:02:40.3]} 15. Bc4 {[%clk 0:02:32.9]}
15... a5 {[%clk 0:02:28.1]} 16. O-O {[%clk 0:02:22.8]} 16... Rb8 {[%clk
0:02:26.5]} 17. b3 {[%clk 0:02:18.4]} 17... Bxd5 {[%clk 0:02:19.8]} 18. Bxd5
{[%clk 0:01:59]} 18... Ne7 {[%clk 0:02:18]} 19. Bc4 {[%clk 0:01:41.7]} 19... Qc7
{[%clk 0:02:09.7]} 20. Qd3 {[%clk 0:01:33.9]} 20... Ng6 {[%clk 0:02:03.8]} 21.
g3 {[%clk 0:01:31.7]} 21... Rfd8 {[%clk 0:01:55.7]} 22. Rfa1 {[%clk 0:01:26.3]}
22... Ra8 {[%clk 0:01:46.5]} 23. Bd5 {[%clk 0:01:23]} 23... Ra7 {[%clk
0:01:44.7]} 24. b4 {[%clk 0:01:13.9]} 24... Rc8 {[%clk 0:01:42.1]} 25. Rxa5
{[%clk 0:01:05.9]} 25... Rxa5 {[%clk 0:01:40.8]} 26. bxa5 {[%clk 0:00:58.5]}
26... Qxc3 {[%clk 0:01:41.3]} 27. Qxc3 {[%clk 0:00:56.9]} 27... Rxc3 {[%clk
0:01:42.2]} 28. a6 {[%clk 0:00:54.4]} 1-0

[Event "*** SCC Grand Prix: Titled Tuesday Blitz"]
[Site "Chess.com"]
[Date "2020.06.02"]
[Round "6"]
[White "ChessBitl"]
[Black "ShieldingOff"]
[Result "1-0"]
[WhiteElo "2331"]
[BlackElo "2052"]
[TimeControl "180+1"]
[EndTime "11:06:41 PDT"]
[Termination "ChessBitl won by resignation"]

1. e4 {[%clk 0:03:00.5]} 1... c5 {[%clk 0:02:59.2]} 2. Nf3 {[%clk 0:03:00.4]}
2... e6 {[%clk 0:02:58.7]} 3. c4 {[%clk 0:02:59.6]} 3... Nc6 {[%clk 0:02:57.9]}
4. Nc3 {[%clk 0:02:57.7]} 4... Nf6 {[%clk 0:02:54.9]} 5. Be2 {[%clk 0:02:56.5]}
5... d6 {[%clk 0:02:54.8]} 6. d4 {[%clk 0:02:55.9]} 6... cxd4 {[%clk 0:02:53.7]}
7. Nxd4 {[%clk 0:02:56.5]} 7... a6 {[%clk 0:02:53.6]} 8. O-O {[%clk 0:02:56.5]}
8... Qc7 {[%clk 0:02:53]} 9. Be3 {[%clk 0:02:54]} 9... Be7 {[%clk 0:02:53.1]}
10. Qd2 {[%clk 0:02:52.7]} 10... Ne5 {[%clk 0:02:52.2]} 11. Rac1 {[%clk
0:02:49.6]} 11... b6 {[%clk 0:02:51.5]} 12. f3 {[%clk 0:02:48.7]} 12... Bb7
{[%clk 0:02:49]} 13. Rfd1 {[%clk 0:02:49.2]} 13... O-O {[%clk 0:02:47.9]} 14. b4
{[%clk 0:02:48.6]} 14... Rac8 {[%clk 0:02:45.1]} 15. a3 {[%clk 0:02:48.3]} 15...
Qb8 {[%clk 0:02:41.5]} 16. Na4 {[%clk 0:02:45.6]} 16... Ba8 {[%clk 0:02:17]} 17.
Nb3 {[%clk 0:02:41.2]} 17... b5 {[%clk 0:01:57.7]} 18. cxb5 {[%clk 0:02:38.8]}
18... axb5 {[%clk 0:01:57.3]} 19. Nb6 {[%clk 0:02:38.8]} 19... Rxc1 {[%clk
0:01:56]} 20. Rxc1 {[%clk 0:02:37.6]} 20... Nfd7 {[%clk 0:01:30.3]} 21. Nxd7
{[%clk 0:02:32.7]} 21... Nxd7 {[%clk 0:01:29.2]} 22. Qd3 {[%clk 0:02:31.8]}
22... Rc8 {[%clk 0:01:19.2]} 23. Qxb5 {[%clk 0:02:30]} 23... Rxc1+ {[%clk
0:01:18.2]} 24. Nxc1 {[%clk 0:02:27.3]} 24... Qc8 {[%clk 0:01:10.4]} 25. Qc4
{[%clk 0:02:21.6]} 25... Qb8 {[%clk 0:00:58.6]} 26. Nb3 {[%clk 0:02:19.9]} 26...
Ne5 {[%clk 0:00:58.4]} 27. Qc2 {[%clk 0:02:09]} 27... h6 {[%clk 0:00:56.8]} 28.
Nd4 {[%clk 0:02:05.9]} 28... Bg5 {[%clk 0:00:52.9]} 29. f4 {[%clk 0:02:03.3]}
1-0

[Event "*** SCC Grand Prix: Titled Tuesday Blitz"]
[Site "Chess.com"]
[Date "2020.06.02"]
[Round "6"]
[White "swimmerchess"]
[Black "stanyga"]
[Result "1-0"]
[WhiteElo "2829"]
[BlackElo "2656"]
[TimeControl "180+1"]
[EndTime "11:07:01 PDT"]
[Termination "swimmerchess won by resignation"]

1. e4 {[%clk 0:03:00.9]} 1... c5 {[%clk 0:02:58.8]} 2. Nf3 {[%clk 0:03:00.3]}
2... d6 {[%clk 0:02:58.7]} 3. d4 {[%clk 0:03:00.8]} 3... cxd4 {[%clk 0:02:59.1]}
4. Nxd4 {[%clk 0:03:01.7]} 4... Nf6 {[%clk 0:02:59.5]} 5. Nc3 {[%clk 0:03:02.3]}
5... a6 {[%clk 0:02:59.7]} 6. Bg5 {[%clk 0:03:03]} 6... Nbd7 {[%clk 0:02:59.2]}
7. Qe2 {[%clk 0:03:01.1]} 7... e6 {[%clk 0:02:57]} 8. O-O-O {[%clk 0:03:00.4]}
8... Qc7 {[%clk 0:02:57]} 9. f4 {[%clk 0:02:59.3]} 9... b5 {[%clk 0:02:57]} 10.
a3 {[%clk 0:02:58]} 10... Be7 {[%clk 0:02:55.3]} 11. g4 {[%clk 0:02:56.3]} 11...
h6 {[%clk 0:02:53.4]} 12. Bh4 {[%clk 0:02:51.3]} 12... Rb8 {[%clk 0:02:52.4]}
13. Bg2 {[%clk 0:02:51.1]} 13... b4 {[%clk 0:02:45.9]} 14. axb4 {[%clk 0:02:52]}
14... Rxb4 {[%clk 0:02:45.3]} 15. Rhe1 {[%clk 0:02:30.8]} 15... g5 {[%clk
0:02:38.2]} 16. fxg5 {[%clk 0:02:28.9]} 16... hxg5 {[%clk 0:02:37.8]} 17. Bxg5
{[%clk 0:02:29.8]} 17... Rxh2 {[%clk 0:02:32.6]} 18. Bf4 {[%clk 0:02:19]} 18...
Rxg2 {[%clk 0:02:16.3]} 19. Qxg2 {[%clk 0:02:19.9]} 19... e5 {[%clk 0:02:16.7]}
20. Nf5 {[%clk 0:02:18.7]} 20... exf4 {[%clk 0:02:16.3]} 21. g5 {[%clk
0:02:19.2]} 21... Qb6 {[%clk 0:01:52.3]} 22. gxf6 {[%clk 0:02:04.4]} 22... Nxf6
{[%clk 0:01:50.3]} 23. Nxe7 {[%clk 0:01:56]} 23... Kxe7 {[%clk 0:01:46.7]} 24.
Qg5 {[%clk 0:01:53]} 24... Kd7 {[%clk 0:01:00.9]} 25. Qxf6 {[%clk 0:01:39.5]}
25... Rxb2 {[%clk 0:00:59.3]} 26. Qxf7+ {[%clk 0:01:37.1]} 26... Kc6 {[%clk
0:00:59.1]} 27. Qd5+ {[%clk 0:01:27.9]} 27... Kc7 {[%clk 0:00:58.8]} 28. Qxd6+
{[%clk 0:01:27.1]} 28... Qxd6 {[%clk 0:00:58.7]} 29. Rxd6 {[%clk 0:01:28]} 1-0

[Event "*** SCC Grand Prix: Titled Tuesday Blitz"]
[Site "Chess.com"]
[Date "2020.06.02"]
[Round "6"]
[White "Trickov"]
[Black "Panterov"]
[Result "1-0"]
[WhiteElo "2334"]
[BlackElo "2125"]
[TimeControl "180+1"]
[EndTime "11:07:02 PDT"]
[Termination "Trickov won by resignation"]

1. d4 {[%clk 0:02:59]} 1... d5 {[%clk 0:02:58.7]} 2. Nf3 {[%clk 0:02:55.7]} 2...
c6 {[%clk 0:02:59.6]} 3. c4 {[%clk 0:02:55]} 3... Bf5 {[%clk 0:02:57.8]} 4. Qb3
{[%clk 0:02:52.3]} 4... Qb6 {[%clk 0:02:54.5]} 5. c5 {[%clk 0:02:52.5]} 5...
Qxb3 {[%clk 0:02:53.3]} 6. axb3 {[%clk 0:02:52.8]} 6... Bxb1 {[%clk 0:02:54]} 7.
Rxb1 {[%clk 0:02:52.3]} 7... Nd7 {[%clk 0:02:53.6]} 8. Bf4 {[%clk 0:02:51]} 8...
a6 {[%clk 0:02:53.3]} 9. e3 {[%clk 0:02:51.2]} 9... h6 {[%clk 0:02:52]} 10. h3
{[%clk 0:02:49.8]} 10... g5 {[%clk 0:02:52.2]} 11. Bh2 {[%clk 0:02:49.5]} 11...
Bg7 {[%clk 0:02:52.8]} 12. b4 {[%clk 0:02:49]} 12... Ngf6 {[%clk 0:02:51.3]} 13.
Bd3 {[%clk 0:02:47.7]} 13... O-O {[%clk 0:02:50.5]} 14. Nd2 {[%clk 0:02:44.7]}
14... Rfe8 {[%clk 0:02:48.4]} 15. Nb3 {[%clk 0:02:43]} 15... e5 {[%clk
0:02:47.7]} 16. O-O {[%clk 0:02:43]} 16... exd4 {[%clk 0:02:30.8]} 17. exd4
{[%clk 0:02:42.4]} 17... Ne4 {[%clk 0:02:31]} 18. Rfd1 {[%clk 0:02:39.7]} 18...
Re7 {[%clk 0:02:15.6]} 19. f3 {[%clk 0:02:27.5]} 19... Nef6 {[%clk 0:02:10.4]}
20. Bd6 {[%clk 0:02:27.2]} 20... Ree8 {[%clk 0:02:04.1]} 21. Na5 {[%clk
0:02:25.8]} 21... Ra7 {[%clk 0:02:04]} 22. Bf5 {[%clk 0:02:24.4]} 22... Bf8
{[%clk 0:02:03.6]} 23. Bh2 {[%clk 0:02:19]} 23... Be7 {[%clk 0:01:55.2]} 24. Re1
{[%clk 0:02:16.6]} 24... Bd8 {[%clk 0:01:55.3]} 25. Rxe8+ {[%clk 0:02:12.9]}
25... Nxe8 {[%clk 0:01:54.7]} 26. Bxd7 {[%clk 0:02:13.3]} 26... Bxa5 {[%clk
0:01:54.8]} 27. bxa5 {[%clk 0:02:13.2]} 27... Nf6 {[%clk 0:01:54.9]} 28. Bc8
{[%clk 0:02:04.1]} 28... Nh5 {[%clk 0:01:50.2]} 29. Bc7 {[%clk 0:01:59.4]} 29...
Nf4 {[%clk 0:01:47.7]} 30. Bxf4 {[%clk 0:01:55.6]} 30... gxf4 {[%clk 0:01:46.9]}
31. Re1 {[%clk 0:01:56.1]} 31... Kf8 {[%clk 0:01:46.5]} 32. Bd7 {[%clk
0:01:54.3]} 32... Ra8 {[%clk 0:01:42.2]} 33. h4 {[%clk 0:01:46.3]} 33... Rd8
{[%clk 0:01:41.9]} 34. Bf5 {[%clk 0:01:45.4]} 34... Ra8 {[%clk 0:01:38.3]} 35.
Kh2 {[%clk 0:01:44.7]} 35... Kg7 {[%clk 0:01:33.5]} 36. Kh3 {[%clk 0:01:43.4]}
36... Kf6 {[%clk 0:01:33.8]} 37. Bd3 {[%clk 0:01:26.3]} 37... Rg8 {[%clk
0:01:33.1]} 38. Kh2 {[%clk 0:01:23.5]} 38... Rd8 {[%clk 0:01:26.9]} 39. Kg1
{[%clk 0:01:22.6]} 39... Rg8 {[%clk 0:01:25.9]} 40. Kf2 {[%clk 0:01:22.5]} 40...
Rd8 {[%clk 0:01:24.9]} 41. Re5 {[%clk 0:01:22.3]} 1-0

[Event "*** SCC Grand Prix: Titled Tuesday Blitz"]
[Site "Chess.com"]
[Date "2020.06.02"]
[Round "6"]
[White "WonderChampion"]
[Black "TheoSlade"]
[Result "0-1"]
[WhiteElo "1974"]
[BlackElo "2364"]
[TimeControl "180+1"]
[EndTime "11:07:03 PDT"]
[Termination "TheoSlade won by checkmate"]

1. e4 {[%clk 0:03:00.9]} 1... e5 {[%clk 0:03:00.5]} 2. Nf3 {[%clk 0:02:57.4]}
2... Nc6 {[%clk 0:03:01.1]} 3. Bc4 {[%clk 0:02:56.6]} 3... Bc5 {[%clk
0:03:00.8]} 4. c3 {[%clk 0:02:56]} 4... Nf6 {[%clk 0:03:01.2]} 5. d4 {[%clk
0:02:55.4]} 5... exd4 {[%clk 0:03:01.5]} 6. e5 {[%clk 0:02:55.8]} 6... d5 {[%clk
0:03:01.6]} 7. Bb5 {[%clk 0:02:55.4]} 7... Ne4 {[%clk 0:03:02]} 8. cxd4 {[%clk
0:02:55.4]} 8... Bb6 {[%clk 0:03:02.6]} 9. Nc3 {[%clk 0:02:54.7]} 9... O-O
{[%clk 0:03:02.7]} 10. O-O {[%clk 0:02:51.9]} 10... Bg4 {[%clk 0:03:01.3]} 11.
Bxc6 {[%clk 0:02:48.5]} 11... bxc6 {[%clk 0:03:01.3]} 12. Be3 {[%clk 0:02:45.2]}
12... f6 {[%clk 0:02:59.3]} 13. exf6 {[%clk 0:02:20.3]} 13... Qxf6 {[%clk
0:02:55.9]} 14. Nxe4 {[%clk 0:02:10.4]} 14... dxe4 {[%clk 0:02:54.1]} 15. Qb3+
{[%clk 0:02:10.6]} 15... Be6 {[%clk 0:02:51.6]} 16. Qc3 {[%clk 0:02:00]} 16...
exf3 {[%clk 0:02:50.6]} 17. a4 {[%clk 0:01:54.8]} 17... Qg6 {[%clk 0:02:45.5]}
18. g3 {[%clk 0:01:53.3]} 18... Qh5 {[%clk 0:02:41.2]} 19. h4 {[%clk 0:01:45.4]}
19... Qg4 {[%clk 0:02:38.9]} 20. Qxc6 {[%clk 0:00:57]} 20... Qh3 {[%clk
0:02:36.1]} 21. Qxe6+ {[%clk 0:00:56.4]} 21... Qxe6 {[%clk 0:02:35.7]} 22. Kh2
{[%clk 0:00:52.5]} 22... Rad8 {[%clk 0:02:23.9]} 23. Rfd1 {[%clk 0:00:48.5]}
23... c6 {[%clk 0:02:19.1]} 24. a5 {[%clk 0:00:46.7]} 24... Bc7 {[%clk
0:02:19.3]} 25. b4 {[%clk 0:00:45.1]} 25... Qg4 {[%clk 0:02:19]} 26. Bg5 {[%clk
0:00:38.1]} 26... Rd5 {[%clk 0:02:17.2]} 27. Be7 {[%clk 0:00:35.2]} 27... Re8
{[%clk 0:02:15.9]} 28. Re1 {[%clk 0:00:34.5]} 28... Rxe7 {[%clk 0:02:14.2]} 29.
Rxe7 {[%clk 0:00:27.6]} 29... Qxh4+ {[%clk 0:02:14.2]} 30. Kg1 {[%clk
0:00:25.7]} 30... Qh3 {[%clk 0:02:15.1]} 31. Re8+ {[%clk 0:00:12.2]} 31... Kf7
{[%clk 0:02:15.2]} 32. Rf8+ {[%clk 0:00:01.6]} 32... Kxf8 {[%clk 0:02:14.6]} 33.
Re1 {[%clk 0:00:01.5]} 33... Qg2# {[%clk 0:02:14.4]} 0-1

[Event "*** SCC Grand Prix: Titled Tuesday Blitz"]
[Site "Chess.com"]
[Date "2020.06.02"]
[Round "6"]
[White "vlad_Sid"]
[Black "AsaHoffmann"]
[Result "1-0"]
[WhiteElo "2640"]
[BlackElo "2457"]
[TimeControl "180+1"]
[EndTime "11:07:06 PDT"]
[Termination "vlad_Sid won by resignation"]

1. c4 {[%clk 0:02:59.7]} 1... Nf6 {[%clk 0:02:57.8]} 2. g3 {[%clk 0:03:00.6]}
2... d6 {[%clk 0:02:57.2]} 3. Bg2 {[%clk 0:03:00.8]} 3... c6 {[%clk 0:02:56.9]}
4. Nc3 {[%clk 0:03:01]} 4... e5 {[%clk 0:02:56.1]} 5. Nf3 {[%clk 0:03:01.4]}
5... Be6 {[%clk 0:02:55.3]} 6. d3 {[%clk 0:02:59.3]} 6... h6 {[%clk 0:02:53.8]}
7. O-O {[%clk 0:02:58.6]} 7... Be7 {[%clk 0:02:53.6]} 8. Rb1 {[%clk 0:02:56.2]}
8... Qd7 {[%clk 0:02:51.7]} 9. Re1 {[%clk 0:02:55.2]} 9... O-O {[%clk
0:02:47.3]} 10. b4 {[%clk 0:02:54.4]} 10... Re8 {[%clk 0:02:42.6]} 11. b5 {[%clk
0:02:53.8]} 11... Bh3 {[%clk 0:02:37.5]} 12. Bh1 {[%clk 0:02:52.1]} 12... Qe6
{[%clk 0:02:34.6]} 13. bxc6 {[%clk 0:02:51.1]} 13... bxc6 {[%clk 0:02:33.2]} 14.
Qa4 {[%clk 0:02:48]} 14... Nfd7 {[%clk 0:02:24.7]} 15. Be3 {[%clk 0:02:39.1]}
15... a5 {[%clk 0:02:23]} 16. Nd2 {[%clk 0:02:28.2]} 16... f5 {[%clk 0:02:19.8]}
17. Bxc6 {[%clk 0:02:22.1]} 17... Nxc6 {[%clk 0:02:17.7]} 18. Qxc6 {[%clk
0:02:23]} 18... f4 {[%clk 0:02:06.8]} 19. Bb6 {[%clk 0:02:22.2]} 19... Nf6
{[%clk 0:01:52.8]} 20. Nde4 {[%clk 0:02:16.7]} 20... Rec8 {[%clk 0:01:44.5]} 21.
Nxf6+ {[%clk 0:02:14.8]} 21... Bxf6 {[%clk 0:01:41.9]} 22. Qd5 {[%clk
0:02:14.1]} 22... a4 {[%clk 0:01:32]} 23. f3 {[%clk 0:02:02.7]} 23... fxg3
{[%clk 0:01:28.1]} 24. hxg3 {[%clk 0:02:01.2]} 24... Bf5 {[%clk 0:01:27]} 25. g4
{[%clk 0:01:55.5]} 25... Qxd5 {[%clk 0:01:25.6]} 26. Nxd5 {[%clk 0:01:56.4]}
26... Be6 {[%clk 0:01:22.7]} 27. Nc7 {[%clk 0:01:54.5]} 27... Bd7 {[%clk
0:01:03.9]} 28. Nxa8 {[%clk 0:01:52.9]} 28... Rxa8 {[%clk 0:01:03.2]} 29. Bc7
{[%clk 0:01:51.2]} 29... Be7 {[%clk 0:01:00.3]} 30. Rb8+ {[%clk 0:01:49.7]}
30... Rxb8 {[%clk 0:00:59.2]} 31. Bxb8 {[%clk 0:01:50.6]} 31... Be6 {[%clk
0:00:57.4]} 32. Rb1 {[%clk 0:01:49.6]} 32... d5 {[%clk 0:00:57.1]} 33. Bxe5
{[%clk 0:01:36]} 33... dxc4 {[%clk 0:00:55.5]} 34. dxc4 {[%clk 0:01:36.9]} 34...
Bxc4 {[%clk 0:00:55]} 35. Rb7 {[%clk 0:01:34.8]} 35... Kf7 {[%clk 0:00:51.4]}
36. Bd6 {[%clk 0:01:32.6]} 1-0

[Event "*** SCC Grand Prix: Titled Tuesday Blitz"]
[Site "Chess.com"]
[Date "2020.06.02"]
[Round "6"]
[White "DLR7"]
[Black "AttilaTurzo"]
[Result "1-0"]
[WhiteElo "2662"]
[BlackElo "2475"]
[TimeControl "180+1"]
[EndTime "11:07:09 PDT"]
[Termination "DLR7 won by resignation"]

1. e4 {[%clk 0:03:00.9]} 1... c5 {[%clk 0:02:59.7]} 2. Nf3 {[%clk 0:03:00.6]}
2... d6 {[%clk 0:03:00.3]} 3. b4 {[%clk 0:03:00.7]} 3... Nf6 {[%clk 0:02:48]} 4.
bxc5 {[%clk 0:02:53.7]} 4... Nxe4 {[%clk 0:02:45.3]} 5. cxd6 {[%clk 0:02:53.6]}
5... exd6 {[%clk 0:02:39.1]} 6. Bb5+ {[%clk 0:02:47.7]} 6... Bd7 {[%clk
0:02:24.8]} 7. Bxd7+ {[%clk 0:02:43.7]} 7... Nxd7 {[%clk 0:02:20.8]} 8. Qe2
{[%clk 0:02:43.9]} 8... Qe7 {[%clk 0:02:16.1]} 9. O-O {[%clk 0:02:34]} 9... Ng5
{[%clk 0:02:04.7]} 10. Qd1 {[%clk 0:02:28.3]} 10... Nxf3+ {[%clk 0:02:00.2]} 11.
Qxf3 {[%clk 0:02:29.2]} 11... Qf6 {[%clk 0:01:56.8]} 12. Qxb7 {[%clk 0:02:24.1]}
12... Rb8 {[%clk 0:01:54.1]} 13. Qe4+ {[%clk 0:02:13.1]} 13... Be7 {[%clk
0:01:43]} 14. Nc3 {[%clk 0:02:09.9]} 14... O-O {[%clk 0:01:41.7]} 15. Ba3 {[%clk
0:02:04.5]} 15... Rfe8 {[%clk 0:01:40.3]} 16. Nd5 {[%clk 0:02:00.5]} 16... Qg5
{[%clk 0:00:55.6]} 17. f4 {[%clk 0:01:45.3]} 17... Qg6 {[%clk 0:00:12.9]} 18.
Nxe7+ {[%clk 0:01:40.6]} 18... Rxe7 {[%clk 0:00:11.6]} 19. Qxe7 {[%clk
0:01:40.5]} 19... Qxc2 {[%clk 0:00:09.6]} 20. Qxd7 {[%clk 0:01:36.6]} 20... Qd3
{[%clk 0:00:09.5]} 21. Qxd6 {[%clk 0:01:33.5]} 1-0

[Event "*** SCC Grand Prix: Titled Tuesday Blitz"]
[Site "Chess.com"]
[Date "2020.06.02"]
[Round "6"]
[White "VALPARAISO37"]
[Black "Jungle_Jaguar"]
[Result "0-1"]
[WhiteElo "2351"]
[BlackElo "2599"]
[TimeControl "180+1"]
[EndTime "11:07:14 PDT"]
[Termination "Jungle_Jaguar won by checkmate"]

1. d4 {[%clk 0:03:00.9]} 1... Nf6 {[%clk 0:02:35.8]} 2. c4 {[%clk 0:03:00.4]}
2... e6 {[%clk 0:02:35.8]} 3. Nc3 {[%clk 0:03:00.4]} 3... Bb4 {[%clk 0:02:32.9]}
4. a3 {[%clk 0:03:00.7]} 4... Bxc3+ {[%clk 0:02:32.9]} 5. bxc3 {[%clk
0:03:00.8]} 5... c5 {[%clk 0:02:33.2]} 6. e3 {[%clk 0:03:00.9]} 6... O-O {[%clk
0:02:33]} 7. Bd3 {[%clk 0:03:01.1]} 7... d6 {[%clk 0:02:32.7]} 8. e4 {[%clk
0:03:00.4]} 8... Nc6 {[%clk 0:02:32.4]} 9. Ne2 {[%clk 0:02:59.9]} 9... e5 {[%clk
0:02:32]} 10. O-O {[%clk 0:02:57.4]} 10... Re8 {[%clk 0:02:19.3]} 11. f3 {[%clk
0:02:57]} 11... cxd4 {[%clk 0:02:15.3]} 12. cxd4 {[%clk 0:02:56.8]} 12... exd4
{[%clk 0:02:15.7]} 13. Rb1 {[%clk 0:02:56.6]} 13... Nd7 {[%clk 0:02:14.3]} 14.
Bb2 {[%clk 0:02:56.1]} 14... Qg5 {[%clk 0:02:05.7]} 15. f4 {[%clk 0:02:53.8]}
15... Qc5 {[%clk 0:02:05.3]} 16. Kh1 {[%clk 0:02:50.1]} 16... Nf6 {[%clk
0:02:05.1]} 17. h3 {[%clk 0:02:46.9]} 17... Nxe4 {[%clk 0:02:02.9]} 18. Qc2
{[%clk 0:02:43.7]} 18... Bf5 {[%clk 0:01:59.2]} 19. Bc1 {[%clk 0:02:42]} 19...
h5 {[%clk 0:01:44.7]} 20. Rb5 {[%clk 0:02:41]} 20... h4 {[%clk 0:01:30.4]} 21.
Rxc5 {[%clk 0:02:35.8]} 21... dxc5 {[%clk 0:01:31.3]} 22. Kh2 {[%clk 0:02:31.7]}
22... Re7 {[%clk 0:01:28.4]} 23. g4 {[%clk 0:02:30.9]} 23... hxg3+ {[%clk
0:01:27.7]} 24. Nxg3 {[%clk 0:02:31.1]} 24... Nxg3 {[%clk 0:01:26.7]} 25. Kxg3
{[%clk 0:02:30.6]} 25... Bxd3 {[%clk 0:01:24.6]} 26. Qxd3 {[%clk 0:02:31]} 26...
Rae8 {[%clk 0:01:23.5]} 27. Qf5 {[%clk 0:02:29.3]} 27... g6 {[%clk 0:01:21]} 28.
Qxc5 {[%clk 0:02:28.7]} 28... d3 {[%clk 0:01:19.2]} 29. Bb2 {[%clk 0:02:27.4]}
29... Re3+ {[%clk 0:01:16.7]} 30. Kh4 {[%clk 0:02:20.3]} 30... Ne7 {[%clk
0:01:12.1]} 31. Kg5 {[%clk 0:02:01.9]} 31... Rg3+ {[%clk 0:00:45.3]} 32. Kf6
{[%clk 0:02:01.5]} 32... Nf5 {[%clk 0:00:45.7]} 33. Re1 {[%clk 0:01:47.7]} 33...
Rxe1 {[%clk 0:00:45.6]} 34. Qc8+ {[%clk 0:01:47.3]} 34... Kh7 {[%clk 0:00:46.1]}
35. Kxf7 {[%clk 0:01:47.4]} 35... Nd6+ {[%clk 0:00:44.1]} 36. Kf8 {[%clk
0:01:46]} 36... Nxc8 {[%clk 0:00:42.9]} 37. f5 {[%clk 0:01:42.9]} 37... gxf5
{[%clk 0:00:42.6]} 38. h4 {[%clk 0:01:41.8]} 38... Nd6 {[%clk 0:00:42.8]} 39.
Bc3 {[%clk 0:01:41.4]} 39... Rg8# {[%clk 0:00:43.4]} 0-1

[Event "*** SCC Grand Prix: Titled Tuesday Blitz"]
[Site "Chess.com"]
[Date "2020.06.02"]
[Round "6"]
[White "TigranMukhutdinov"]
[Black "Kira170"]
[Result "0-1"]
[WhiteElo "2449"]
[BlackElo "2623"]
[TimeControl "180+1"]
[EndTime "11:07:18 PDT"]
[Termination "Kira170 won by resignation"]

1. Nf3 {[%clk 0:03:00.9]} 1... Nf6 {[%clk 0:02:59]} 2. g3 {[%clk 0:03:01.3]}
2... e6 {[%clk 0:02:58.6]} 3. Bg2 {[%clk 0:03:01.1]} 3... d5 {[%clk 0:02:59]} 4.
O-O {[%clk 0:03:01.4]} 4... g6 {[%clk 0:02:59.3]} 5. c4 {[%clk 0:03:01.6]} 5...
Bg7 {[%clk 0:02:59.5]} 6. b3 {[%clk 0:02:58.8]} 6... O-O {[%clk 0:02:59.4]} 7.
Bb2 {[%clk 0:02:59.1]} 7... b6 {[%clk 0:02:59.6]} 8. d3 {[%clk 0:02:59.1]} 8...
Bb7 {[%clk 0:02:59.4]} 9. Nbd2 {[%clk 0:02:59.6]} 9... c5 {[%clk 0:02:59.6]} 10.
cxd5 {[%clk 0:02:55.6]} 10... exd5 {[%clk 0:02:57.8]} 11. Ne5 {[%clk 0:02:55.6]}
11... Re8 {[%clk 0:02:54.4]} 12. Qc2 {[%clk 0:02:52.2]} 12... Na6 {[%clk
0:02:50.6]} 13. Rac1 {[%clk 0:02:47.9]} 13... Rc8 {[%clk 0:02:47]} 14. Rfe1
{[%clk 0:02:47.5]} 14... Qc7 {[%clk 0:02:43.3]} 15. e3 {[%clk 0:02:43.9]} 15...
Rxe5 {[%clk 0:02:40.8]} 16. Bxe5 {[%clk 0:02:42.2]} 16... Qxe5 {[%clk
0:02:41.7]} 17. d4 {[%clk 0:02:40]} 17... cxd4 {[%clk 0:02:28]} 18. Qxc8+ {[%clk
0:02:35]} 18... Bxc8 {[%clk 0:02:28.9]} 19. Rxc8+ {[%clk 0:02:35.5]} 19... Bf8
{[%clk 0:02:28.4]} 20. Nf3 {[%clk 0:02:34.4]} 20... Qe6 {[%clk 0:02:24.9]} 21.
Ra8 {[%clk 0:02:34]} 21... d3 {[%clk 0:02:19.6]} 22. Rc1 {[%clk 0:02:32.1]}
22... Kg7 {[%clk 0:01:59]} 23. Bf1 {[%clk 0:02:25.1]} 23... Qe4 {[%clk
0:01:35.9]} 24. Nd2 {[%clk 0:02:22.3]} 24... Qb4 {[%clk 0:01:32.3]} 25. Rd1
{[%clk 0:02:21.9]} 25... Nc5 {[%clk 0:01:20.6]} 26. Rxa7 {[%clk 0:02:19.1]}
26... Nfe4 {[%clk 0:01:19.6]} 27. a3 {[%clk 0:02:14.4]} 27... Qc3 {[%clk
0:01:18.9]} 28. b4 {[%clk 0:02:07.5]} 28... Nxd2 {[%clk 0:01:16.3]} 29. bxc5
{[%clk 0:02:06.9]} 29... Bxc5 {[%clk 0:01:15.7]} 30. Bg2 {[%clk 0:02:05]} 30...
Ne4 {[%clk 0:01:13.5]} 31. Rd7 {[%clk 0:02:03.2]} 31... Qc2 {[%clk 0:01:11.9]}
32. Rf1 {[%clk 0:02:02.2]} 32... d2 {[%clk 0:00:20.2]} 33. Rxd5 {[%clk 0:02:00]}
33... Nxf2 {[%clk 0:00:19.7]} 34. Rd7 {[%clk 0:01:49.7]} 34... d1=Q {[%clk
0:00:18.9]} 0-1